Cogmind - Beta 17 @@@ ROGUE MODE // 2026.08.10 @ 14:49:38 Player: aperiodic Result: Self-destructed Performance ------------- Evolutions (5) 2500 Regions Visited (11) 2200 Robots Destroyed (70) 350 Value Destroyed (1544) 1544 Prototype IDs (45) 900 Alien Tech Used (0) 0 Bonus (1071) 1071 TOTAL SCORE: 8565 Bonus ------- High Alert Combat Kills 71 Registered with UFD 300 Met Optimus in HQ 500 Met Data Miner 300 Friendly Fire -100 Cogmind --------- Core Integrity 942/1000 Matter 225/300 Energy 665/665 System Corruption 0% Temperature Cool (0) Movement Hovering (300) Ox5 Location -5/Factory Parts ------- > --- POWER (2) -------- Neutrino Core > --- PROPULSION (5) --- Cooled Aerolev Unit > --- UTILITY (8) ------ Improved Cooling System Large Storage Unit Energy Well Enhanced Optical Array Advanced Sensor Array Advanced Signal Interpreter Advanced System Shield > --- WEAPON (2) ------- Heavy Plasma Cannon > --- INVENTORY (15) --- Improved Trap Scanner Seismic Detector Gun Armor Enhanced Scrap Shield A0-MCA's Component Scanner CPS Tube (2) CPS Tube (2) Power Sword Vortex Trap DRS Beacon (Ready) Peak State ------------ > --- POWER ------------ Makeshift Power Source Neutrino Core > --- PROPULSION ------- Improved Gravmag System Improved Gravmag System Cooled Aerolev Unit Gravmag Array > --- UTILITY ---------- Improved Cooling System Large Storage Unit Energy Well Gravity Neutralizer Enhanced Optical Array Advanced Sensor Array Advanced Signal Interpreter Advanced System Shield > --- WEAPON ----------- Ion Burst Cannon Power Sword > --- INVENTORY -------- Gravmag System Improved Trap Scanner Seismic Detector Gun Armor Enhanced Scrap Shield A0-MCA's Component Scanner Heavy Plasma Cannon Long-range Missile Launcher CPS Tube CPS Tube Vortex Trap DRS Beacon [Rating: 90] Favorites ----------- Power Ion Engine Engine Ion Engine Power Core Neutrino Core Propulsion Spiked Treads Treads Spiked Treads Wheel Wheel Hover Unit Improved Gravmag System Flight Unit Xenon Bombardment Thruster Utility Large Storage Unit Device Seismic Detector Storage Large Storage Unit Processor Advanced Signal Interpreter Hackware Experimental Hacking Suite Protection Medium Armor Plating Weapon Subdweller Beam Cannon Energy Gun Improved EM Shotgun Energy Cannon Subdweller Beam Cannon Ballistic Gun Assault Rifle Launcher Tesla Bomb Launcher Special Weapon CPS Tube Slashing Weapon Makeshift Axe Build | -11 -10 -10 -10 -8 -8 -6 -6 -6 -6 -5 -5 ------- Run | Yrd Mat Min Sub Rec Scr Fac Low Low Dat Pro Fac Slots Evolved 10 | . . . . . . 8 . . . . 2 Power 1 | . . . . . . . . . . . 1 Propulsion 3 | . . . . . . 2 . . . . 1 Utility 6 | . . . . . . 6 . . . . . Weapon . | . . . . . . . . . . . . Parts Attached 69 | 9 9 . 9 . 11 23 2 2 . 1 3 Power 8 | 1 2 . . . 1 1 . 1 . 1 1 Engine 6 | 1 2 . . . 1 1 . . . . 1 Core 2 | . . . . . . . . 1 . 1 . Reactor . | . . . . . . . . . . . . Propulsion 18 | 2 3 . 2 . 3 6 1 . . . 1 Treads 4 | . 2 . 2 . . . . . . . . Leg . | . . . . . . . . . . . . Wheel 3 | 2 1 . . . . . . . . . . Hover 10 | . . . . . 2 6 1 . . . 1 Flight 1 | . . . . . 1 . . . . . . Utility 29 | 3 1 . 4 . 4 15 1 . . . 1 Device 12 | 2 . . . . 2 8 . . . . . Storage 4 | 1 1 . . . 1 . 1 . . . . Processor 3 | . . . . . . 3 . . . . . Hackware 2 | . . . . . . 1 . . . . 1 Protection 8 | . . . 4 . 1 3 . . . . . Artifact . | . . . . . . . . . . . . Weapon 14 | 3 3 . 3 . 3 1 . 1 . . . Energy Gun 2 | . 2 . . . . . . . . . . Energy Cannon 3 | . . . 2 . . 1 . . . . . Ballistic Gun 3 | 3 . . . . . . . . . . . Ballistic Cannon . | . . . . . . . . . . . . Launcher 1 | . . . . . . . . 1 . . . Special Weapon 3 | . 1 . . . 2 . . . . . . Impact Weapon . | . . . . . . . . . . . . Slashing Weapon 2 | . . . 1 . 1 . . . . . . Piercing Weapon . | . . . . . . . . . . . . Special Melee Weapon . | . . . . . . . . . . . . Unidentified Prototypes 5 | . 1 . . . 1 3 . . . . . Parts Lost 17 | . . . 5 . . 4 . 1 . . 7 Power 2 | . . . . . . . . 1 . . 1 Propulsion 7 | . . . 2 . . 1 . . . . 4 Utility 5 | . . . 1 . . 3 . . . . 1 Weapon 3 | . . . 2 . . . . . . . 1 Highest Loss Streak 7 | . . . 5 . . 2 . 1 . . 7 To Critical Strikes . | . . . . . . . . . . . . Average Backups 8 | 3 8 15 7 13 6 10 9 9 10 10 9 Power . | . . . . 1 . . . . . . . Propulsion . | 1 3 2 . . . 1 1 1 1 1 . Utility 3 | . 1 5 2 4 2 5 4 4 4 4 5 Weapon 3 | . 3 7 4 7 2 2 2 2 3 2 1 Tool/Special . | . . . . . . . . . . . . Unused Backups 15 | . 1 1 1 . 4 1 . . . 1 6 Power . | . . . . . . . . . . . . Propulsion 1 | . 1 . . . . . . . . . . Utility 4 | . . . . . . . . . . . 4 Weapon 8 | . . 1 1 . 4 1 . . . 1 . Tool/Special 2 | . . . . . . . . . . . 2 Average Slot Usage (%) 93 | . 100 100 91 100 93 87 93 92 93 93 93 Engine 11 | . 14 14 14 14 13 6 6 3 . . 4 Treads 14 | . 9 . 24 28 17 . . . . . . Wheel 3 | . 18 28 2 . . . . . . . . Hover 7 | . . . . . 7 21 20 20 20 20 23 Device 10 | . 14 14 1 . 7 21 26 26 26 26 17 Storage 8 | . 14 14 6 14 7 6 12 13 13 13 11 Processor 2 | . . . . . . 9 13 13 13 13 11 Hackware 2 | . . . . . 4 5 . . . . 4 Protection 6 | . . . 12 14 6 . . . . . . Energy Gun 4 | . 17 28 3 . 3 . . . . . . Energy Cannon 11 | . . . 12 28 12 8 13 10 6 6 9 Launcher 2 | . . . . . 5 . . . . . . Slashing Weapon 4 | . . . 12 . 2 3 . 1 6 6 1 Peak Build Rating 90 | 7 13 13 17 16 44 76 74 75 75 76 90 Average Rating 32 | 5 9 13 14 16 28 66 73 73 75 75 89 On Entrance 39 | . 7 13 13 16 16 34 71 74 75 75 76 Avg Prop Armor Cover (%) 12 | . . . . . 13 10 . . . . . Naked Turns 138 | . . . . . 138 . . . . . . Heaviest Build 64 | 13 32 32 48 48 48 54 56 56 54 54 64 Greatest Support 65 | 26 40 26 40 40 40 51 56 56 56 56 65 Greatest Overweight (x) 15 | 2 1 1 1 1 9 5 1 15 . . 1 Average Overweight (x) . | . . 1 . 1 1 . . . . . . Largest Inventory Capacity 15 | 8 15 15 15 15 15 15 15 15 15 15 15 Average Capacity 11 | 7 9 15 9 15 10 15 15 15 15 15 15 Most Carried 15 | 8 15 15 15 15 15 15 12 14 13 15 14 Average Carried 9 | 3 8 14 8 15 7 13 11 12 13 13 12 Final Capacity 15 | 8 15 15 15 15 15 15 15 15 15 15 15 Final Carried 15 | 8 15 15 15 15 15 12 12 13 13 15 11 Transmogrified Parts 30 | . . . . . 30 . . . . . . Integrity Recovered 128 | . . . . . 128 . . . . . . Class Distribution -------------------- 76% | Mutant 12% | Scout 5% | Hacker-Mutant 3% | Skirmisher Dominant Class ---------------- Mutant | -10/Materials Mutant | -10/Mines Mutant | -10/Subcaves Mutant | -8/Recycling Mutant | -8/Scraptown Scout | -6/Factory Scout | -6/Lower Caves Scout | -6/Lower Caves Scout | -6/Data Miner Scout | -5/Proximity Caves Scout | -5/Factory Resources | -11 -10 -10 -10 -8 -8 -6 -6 -6 -6 -5 -5 ----------- Run | Yrd Mat Min Sub Rec Scr Fac Low Low Dat Pro Fac Matter Collected 1399 | 326 154 28 110 . . 646 30 75 . 30 . Remotely . | . . . . . . . . . . . . Salvage Created 2219 | 105 186 278 285 . . 1192 . 29 . . 144 Parts 135 | 9 15 16 27 . . 52 . 2 . . 14 Haulers Intercepted 3 | . 1 . . . . 2 . . . . . Recyclers Shooed 4 | . . . . . . 4 . . . . . Parts Field Recycled . | . . . . . . . . . . . . Retrieved Matter . | . . . . . . . . . . . . Parts Self-Destructed 10 | . . . 7 . . . 1 2 . . . Prevented 2 | . . . 2 . . . . . . . . Parts Restored . | . . . . . . . . . . . . Kills | -11 -10 -10 -10 -8 -8 -6 -6 -6 -6 -5 -5 ------- Run | Yrd Mat Min Sub Rec Scr Fac Low Low Dat Pro Fac Combat Hostiles Destroyed 46 | . 6 8 10 . . 12 . 3 . . 7 Melee 7 | . . . 5 . . 2 . . . . . Guns 15 | . 6 8 1 . . . . . . . . Cannons 11 | . . . 1 . . 10 . . . . . AOE 13 | . . . 3 . . . . 3 . . 7 Classes Destroyed 12 | 2 4 1 2 . . 3 . . . . . Worker 5 | . . . . . . 4 . . . . 1 Builder 2 | . . . . . . 2 . . . . . Tunneler 3 | 2 . . . . . 1 . . . . . Hauler 3 | . 1 . . . . 2 . . . . . Recycler 6 | 1 . 1 . . . 4 . . . . . Operator 1 | . 1 . . . . . . . . . . Watcher 4 | . 2 . . . . 2 . . . . . Swarmer 33 | . 6 6 6 . . 7 . 3 . . 5 Grunt 3 | . . 2 . . . 1 . . . . . Programmer 6 | . . . . . . 4 . . . . 2 Artisan 1 | . . . 1 . . . . . . . . Subdweller 4 | . . . 4 . . . . . . . . Best Kill Streak 8 | 3 3 3 4 . . 6 . 3 . . 8 Combat Bots Only 7 | . 3 3 4 . . 3 . 3 . . 7 Max Kills in Single Turn 6 | 1 1 2 4 . . 1 . 2 . . 6 Gunslinging 1 | . . . 1 . . . . . . . . Exploded 6 | . . . 3 . . . . 2 . . 6 Melee 1 | . . . 1 . . 1 . . . . . Uniques/NPCs Destroyed . | . . . . . . . . . . . . Combat | -11 -10 -10 -10 -8 -8 -6 -6 -6 -6 -5 -5 -------- Run | Yrd Mat Min Sub Rec Scr Fac Low Low Dat Pro Fac Hostile Shots Fired 245 | . 17 25 54 . . 89 . 11 . 5 44 Missed 86 | . 9 6 14 . . 38 . 3 . 3 13 Hits 159 | . 8 19 40 . . 51 . 8 . 2 31 Projectile 159 | . 8 19 40 . . 51 . 8 . 2 31 AOE 3 | . . . 3 . . . . . . . . Critical Strikes 7 | . . . 1 . . 3 . . . . 3 Damage Taken 2769 | . 97 169 810 . . 912 . 110 . 31 640 Core 394 | . . 43 168 . . 109 . 16 . . 58 Absorbed by Shields . | . . . . . . . . . . . . Regen/Repaired (Parts) 129 | . . . . . . 36 . . . . 93 Core Remaining (%) 66 | 100 . . . . 15 . . . . 85 . Volleys Fired 179 | 6 17 13 13 . . 85 15 13 . . 17 Largest 2 | 2 2 2 2 . . 2 1 1 . . 1 Hottest 190 | 40 100 90 90 . . 190 90 90 . . 90 Shots Fired 220 | 12 32 26 16 . . 89 15 13 . . 17 Gun 81 | 12 30 26 13 . . . . . . . . Cannon 131 | . . . 3 . . 89 15 9 . . 15 Launcher 6 | . . . . . . . . 4 . . 2 Special 2 | . 2 . . . . . . . . . . Kinetic 26 | 12 14 . . . . . . . . . . Thermal 133 | . 2 . 3 . . 89 15 9 . . 15 Explosive 6 | . . . . . . . . 4 . . 2 Electromagnetic 55 | . 16 26 13 . . . . . . . . Robot Hit Streak 11 | 4 11 7 6 . . 6 . . . . 1 Robot Miss Streak 16 | 2 3 6 5 . . 16 . 1 . . 1 Penetration Max . | . . . . . . . . . . . . Secondary Targets 3 | . 1 1 1 . . . . . . . . Max Gunslinging Chain 1 | . 1 1 1 . . . . . . . . Shots Hit Robots 134 | 7 20 17 25 . . 63 . . . . 2 Core Hits 86 | 4 12 13 11 . . 34 . 3 . . 9 Critical Kills . | . . . . . . . . . . . . Critical Parts Destroyed . | . . . . . . . . . . . . Critical Strikes 3 | . . . 1 . . 2 . . . . . Sever 3 | . . . 1 . . 2 . . . . . Melee Attacks 94 | . . . 25 . . 67 . . . 2 . Impact . | . . . . . . . . . . . . Slashing 94 | . . . 25 . . 67 . . . 2 . Piercing . | . . . . . . . . . . . . Sneak Attacks 14 | . . . 1 . . 13 . . . . . Combat Hostiles . | . . . . . . . . . . . . Follow-up Attacks . | . . . . . . . . . . . . Damage Inflicted 5628 | 94 399 285 745 . . 2922 . 278 . . 905 Guns 894 | 94 362 285 153 . . . . . . . . Cannons 1538 | . . . 82 . . 1424 . . . . 32 Explosions 1294 | . 36 . 107 . . . . 278 . . 873 Melee 1901 | . . . 403 . . 1498 . . . . . Ramming 1 | . 1 . . . . . . . . . . Kinetic 190 | 94 96 . . . . . . . . . . Thermal 1846 | . 36 . 189 . . 1424 . . . . 197 Explosive 986 | . . . . . . . . 278 . . 708 Electromagnetic 704 | . 266 285 153 . . . . . . . . Impact . | . . . . . . . . . . . . Slashing 1901 | . . . 403 . . 1498 . . . . . Piercing . | . . . . . . . . . . . . Highest Corruption 4 | . . . . . . 4 . . . . . Average Corruption 2 | . . . . . . 2 . . . . . Corruption Purged 4 | . . . . . . 4 . . . . . Corruption Blocked . | . . . . . . . . . . . . Effects 13 | . . . . . . 13 . . . . . Message Errors 3 | . . . . . . 3 . . . . . Matter Fused 3 | . . . . . . 3 . . . . . Heat Flow Errors 1 | . . . . . . 1 . . . . . Energy Discharges 2 | . . . . . . 2 . . . . . Data Loss (minor) 1 | . . . . . . 1 . . . . . Data Loss (major) 2 | . . . . . . 2 . . . . . Misfires 1 | . . . . . . 1 . . . . . Overload Shots . | . . . . . . . . . . . . Overflow Damage 405 | . . . 79 . . 188 . . . . 138 Projectiles 62 | . . . . . . 55 . . . . 7 Explosions 131 | . . . . . . . . . . . 131 Melee 212 | . . . 79 . . 133 . . . . . Knockbacks . | . . . . . . . . . . . . Impact . | . . . . . . . . . . . . Kinetic . | . . . . . . . . . . . . Secondary . | . . . . . . . . . . . . Self-Inflicted Damage 100 | . 38 . . . . . . . . . 62 Shots 2 | . 1 . . . . . . . . . 1 Rammed 1 | . 1 . . . . . . . . . . Targets Rammed 1 | . 1 . . . . . . . . . . Kicked . | . . . . . . . . . . . . Crushed . | . . . . . . . . . . . . Highest Temperature 291 | . 60 177 291 . . 291 120 . . . 1 Average Temperature 65 | . 20 57 111 . . 74 65 . . . 1 Received Heat Transfer 522 | . . 33 390 . . 90 . . . . 9 Siege Activations . | . . . . . . . . . . . . Martial Activations . | . . . . . . . . . . . . Shielding Activations . | . . . . . . . . . . . . Robots Disrupted . | . . . . . . . . . . . . Combat Hostiles . | . . . . . . . . . . . . Robots Corrupted . | . . . . . . . . . . . . Combat Hostiles . | . . . . . . . . . . . . Parts Fried 4 | . 2 2 . . . . . . . . . Impact Corruptions . | . . . . . . . . . . . . Robots Melted . | . . . . . . . . . . . . Combat Hostiles . | . . . . . . . . . . . . Parts Melted 3 | . . . . . . 3 . . . . . Heat Transferred 1986 | . . . 261 . . 1575 . . . . 150 Parts Sabotaged . | . . . . . . . . . . . . Parts Stolen . | . . . . . . . . . . . . Parts Stripped . | . . . . . . . . . . . . Power Chain Reactions 2 | . 1 . 1 . . . . . . . . Alert | -11 -10 -10 -10 -8 -8 -6 -6 -6 -6 -5 -5 ------- Run | Yrd Mat Min Sub Rec Scr Fac Low Low Dat Pro Fac Maximum Alert Level 3 | . . . . . . 1 . . . . 3 Low Security (%) 75 | 100 100 100 . 100 . 67 . . . . . Level 1 15 | . . . . . . 32 . . . . . Level 2 5 | . . . . . . . . . . . 65 Level 3 2 | . . . . . . . . . . . 34 Level 4 . | . . . . . . . . . . . . Level 5 . | . . . . . . . . . . . . High Security . | . . . . . . . . . . . . Max Security . | . . . . . . . . . . . . Peak Influence 759 | 10 71 124 . 16 . 237 . . . . 759 Initial 759 | . . . . 16 . . . . . . 759 Average 104 | 1 12 31 . . . 90 . . . . 624 Influence Increases 2704 | 15 201 195 405 . . 744 . 70 . 15 1059 Destroy 0b10 Robot/C 840 | . 120 160 120 . . 240 . 60 . . 140 Destroy 0b10 Robot/NC 120 | 15 20 5 . . . 75 . . . . 5 Destroy Leader 154 | . 26 30 . . . 68 . 10 . . 20 Trap Triggered on 0b10 10 | . . . . . . 10 . . . . . Successful Hack 42 | . . . . . . 42 . . . . . Disable Machine 105 | . . . . . . 45 . . . . 60 Destroy Structure 158 | . 5 . . . . 69 . . . . 84 Advance Influence 750 | . . . . . . . . . . . 750 Partial Spotted 15 | . . . . . . 15 . . . . . Lose Combat Pursuer 510 | . 30 . 285 . . 180 . . . 15 . Influence Decreases 2036 | 15 201 169 397 34 . 532 212 70 . . 406 Entered New Map 117 | . . . 14 18 . . 79 . . . 6 Time Decay 1673 | 15 201 169 357 16 . 482 133 70 . . 230 Search Patrol Dispatched 100 | . . . . . . . . . . . 100 Lost Part 136 | . . . 26 . . 40 . . . . 70 Lost Ally 10 | . . . . . . 10 . . . . . Squads Dispatched 17 | . . . . . . 12 . . . . 5 Investigation 6 | . . . . . . 5 . . . . 1 Extermination 6 | . . . . . . 5 . . . . 1 Reinforcement 5 | . . . . . . 2 . . . . 3 Assault . | . . . . . . . . . . . . Garrison . | . . . . . . . . . . . . Intercept . | . . . . . . . . . . . . Searches Triggered 1 | . . . . . . . . . . . 1 Construction Impeded 2 | . . . . . . 1 . . . . 1 Haulers Reinforced . | . . . . . . . . . . . . Active Scanning Responses . | . . . . . . . . . . . . Cargo Convoy Interrupts . | . . . . . . . . . . . . Stealth | -11 -10 -10 -10 -8 -8 -6 -6 -6 -6 -5 -5 --------- Run | Yrd Mat Min Sub Rec Scr Fac Low Low Dat Pro Fac Distress Signals 2 | . 1 . . . . . . . . . 1 Communications Jammed . | . . . . . . . . . . . . Distress Signals . | . . . . . . . . . . . . Times Spotted 102 | . 14 8 24 . . 34 . 3 . 6 13 Peak Tracking Total 10 | . 4 3 6 . . 7 . 3 . 3 10 Tactical Retreats 24 | . 1 . 16 . . 6 . . . 1 . Traps | -11 -10 -10 -10 -8 -8 -6 -6 -6 -6 -5 -5 ------- Run | Yrd Mat Min Sub Rec Scr Fac Low Low Dat Pro Fac Traps Triggered 2 | . . . . . . 1 . . . . 1 Indirectly . | . . . . . . . . . . . . Trap Hack Attempts . | . . . . . . . . . . . . Triggered . | . . . . . . . . . . . . Disarmed . | . . . . . . . . . . . . Reprogrammed . | . . . . . . . . . . . . Reused 1 | . . . . . . 1 . . . . . Traps Extracted . | . . . . . . . . . . . . Installed 1 | . . . . . . 1 . . . . . Triggered 1 | . . . . . . 1 . . . . . Most Traps Carried 3 | . . . 1 1 3 3 1 1 1 1 1 Machines | -11 -10 -10 -10 -8 -8 -6 -6 -6 -6 -5 -5 ---------- Run | Yrd Mat Min Sub Rec Scr Fac Low Low Dat Pro Fac Machines Disabled 8 | . . . 1 . . 3 . . . . 4 Max in Single Turn 3 | . . . 1 . . 1 . . . . 3 Machines Repaired . | . . . . . . . . . . . . Machines Dismantled . | . . . . . . . . . . . . Machines Sabotaged . | . . . . . . . . . . . . Overloaded Fab Kills . | . . . . . . . . . . . . Hacking | -11 -10 -10 -10 -8 -8 -6 -6 -6 -6 -5 -5 --------- Run | Yrd Mat Min Sub Rec Scr Fac Low Low Dat Pro Fac Machines Accessed 30 | . . . 2 . 3 16 1 . 4 . 4 Terminals 10 | . . . . . . 9 . . . . 1 Fabricators . | . . . . . . . . . . . . Repair Stations 3 | . . . . . . 2 . . . . 1 Recycling Units 5 | . . . . . . 4 . . . . 1 Scanalyzers 2 | . . . . . . 1 . . . . 1 Garrison Access . | . . . . . . . . . . . . Total Hacks 89 | . . . 4 . 7 35 1 . 29 . 13 Successful 67 | . . . 4 . 7 19 1 . 29 . 7 Failed 21 | . . . . . . 15 . . . . 6 Catastrophic 2 | . . . . . . 2 . . . . . Database Lockouts 1 | . . . . . . 1 . . . . . Manual 32 | . . . . . . 25 . . . . 7 Terminals 28 | . . . . . . 21 . . . . 7 Fabricators . | . . . . . . . . . . . . Repair Stations 7 | . . . . . . 4 . . . . 3 Recycling Units 7 | . . . . . . 6 . . . . 1 Scanalyzers 6 | . . . . . . 4 . . . . 2 Garrison Access . | . . . . . . . . . . . . Terminal Hacks 46 | . . . 4 . 7 4 1 . 29 . 1 Record 17 | . . . 3 . 6 . . . 8 . . Part Schematic 13 | . . . . . . . . . 13 . . Robot Schematic 5 | . . . . . . . . . 5 . . Robot Analysis 1 | . . . . . . 1 . . . . . Prototype ID Bank 3 | . . . . . . . . . 3 . . Open Door 1 | . . . . . . . 1 . . . . Branch Access Points 1 | . . . . . . 1 . . . . . Terminal Index 1 | . . . . . . 1 . . . . . Hauler Manifests 2 | . . . . . . 1 . . . . 1 Proto ID Catalog 2 | . . . 1 . 1 . . . . . . Fabricator Hacks . | . . . . . . . . . . . . Repair Station Hacks 4 | . . . . . . 2 . . . . 2 Scan Component 2 | . . . . . . 1 . . . . 1 Repair 2 | . . . . . . 1 . . . . 1 Recycling Unit Hacks . | . . . . . . . . . . . . Scanalyzer 3 | . . . . . . 2 . . . . 1 Retrieve Study 3 | . . . . . . 2 . . . . 1 Garrison Access Hacks . | . . . . . . . . . . . . Unauthorized Hacks 14 | . . . . . . 11 . . . . 3 Terminals 10 | . . . . . . 8 . . . . 2 Track 1 | . . . . . . 1 . . . . . Assimilate 1 | . . . . . . 1 . . . . . Botnet 1 | . . . . . . . . . . . 1 Operators 2 | . . . . . . 1 . . . . 1 Skim 5 | . . . . . . 5 . . . . . Fabricators . | . . . . . . . . . . . . Repair Stations . | . . . . . . . . . . . . Recycling Units 4 | . . . . . . 3 . . . . 1 Fedlink 4 | . . . . . . 3 . . . . 1 Scanalyzers . | . . . . . . . . . . . . Garrison Access . | . . . . . . . . . . . . Data Cores Recovered 1 | . 1 . . . . . . . . . . Used . | . . . . . . . . . . . . Hacking Detections 11 | . . . . . . 9 . . . . 2 Full Trace Events 1 | . . . . . . 1 . . . . . Feedback Events 2 | . . . . . . 2 . . . . . Corruption 1 | . . . . . . 1 . . . . . Hackware Fried 1 | . . . . . . 1 . . . . . Feedback Blocked . | . . . . . . . . . . . . Robot Schematics Acquired 5 | . . . . . . . . . 5 . . Robots Built . | . . . . . . . . . . . . Authchips . | . . . . . . . . . . . . Time . | . . . . . . . . . . . . Total Robot Build Rating . | . . . . . . . . . . . . Part Schematics Acquired 13 | . . . . . . . . . 13 . . Parts Built . | . . . . . . . . . . . . Authchips . | . . . . . . . . . . . . Time . | . . . . . . . . . . . . Total Part Build Rating . | . . . . . . . . . . . . Part Studies Acquired 3 | . . . . . . 2 . . . . 1 Parts Repaired 2 | . . . . . . 1 . . . . 1 Time 100 | . . . . . . 60 . . . . 40 Parts Recycled . | . . . . . . . . . . . . Recycled Matter . | . . . . . . . . . . . . Retrieved Matter . | . . . . . . . . . . . . Retrieved Components . | . . . . . . . . . . . . Parts Scanalyzed . | . . . . . . . . . . . . Part Schematics Acquired . | . . . . . . . . . . . . Parts Damaged . | . . . . . . . . . . . . Bothacking | -11 -10 -10 -10 -8 -8 -6 -6 -6 -6 -5 -5 ------------ Run | Yrd Mat Min Sub Rec Scr Fac Low Low Dat Pro Fac Used RIF Installer . | . . . . . . . . . . . . Robots Hacked . | . . . . . . . . . . . . Non-combat . | . . . . . . . . . . . . Combat . | . . . . . . . . . . . . Robot Hacks Applied . | . . . . . . . . . . . . Relay Couplers Released . | . . . . . . . . . . . . Fabnet Peak Effective % . | . . . . . . . . . . . . Robots Rewired . | . . . . . . . . . . . . Allies Hacked . | . . . . . . . . . . . . Hacks Repelled . | . . . . . . . . . . . . Allies | -11 -10 -10 -10 -8 -8 -6 -6 -6 -6 -5 -5 -------- Run | Yrd Mat Min Sub Rec Scr Fac Low Low Dat Pro Fac Total Allies 1 | . . . . . . 1 . . . . . Largest Group 1 | . . . . . . 1 . . . . . Highest-Rated Group 10 | . . . . . . 10 . . . . . Highest-Rated Ally 10 | . . . . . . 10 . . . . . Initial UFD Resources 42 | . . . . . . 24 40 40 40 42 42 Total Orders 2 | . . . . . . 2 . . . . . STAY 1 | . . . . . . 1 . . . . . FOLLOW 1 | . . . . . . 1 . . . . . Ally Attacks . | . . . . . . . . . . . . Total Damage . | . . . . . . . . . . . . Kills . | . . . . . . . . . . . . Allies Corrupted . | . . . . . . . . . . . . Allies Melted . | . . . . . . . . . . . . Intel | -11 -10 -10 -10 -8 -8 -6 -6 -6 -6 -5 -5 ------- Run | Yrd Mat Min Sub Rec Scr Fac Low Low Dat Pro Fac Active Infowar (turns) 6328 | 26 1011 821 445 . . 2490 469 359 68 156 483 Optics 3133 | . . . . . . 1598 469 359 68 156 483 Sensors 3534 | . . . . . . 2069 443 315 68 156 483 Seismic 5544 | 26 1011 821 445 . . 2327 386 292 68 156 12 Robot Analysis Total 1 | . . . . . . 1 . . . . . Derelict Logs Recovered 8 | . . 2 . . 3 . 1 2 . . . Drone Launches . | . . . . . . . . . . . . Drone Recoveries . | . . . . . . . . . . . . Exploration | -11 -10 -10 -10 -8 -8 -6 -6 -6 -6 -5 -5 ------------- Run | Yrd Mat Min Sub Rec Scr Fac Low Low Dat Pro Fac Turns Passed 17727 | 92 1011 821 4224 505 6920 2619 469 359 68 156 483 Spaces Moved 11286 | 55 751 690 2264 195 3556 1864 681 498 131 275 326 Core 1090 | 6 . . . . 1083 . . 1 . . . Treads 4062 | . 177 . 1980 195 1647 63 . . . . . Legs . | . . . . . . . . . . . . Wheels 1597 | 49 574 690 284 . . . . . . . . Hover 3884 | . . . . . 173 1801 681 497 131 275 326 Flight 653 | . . . . . 653 . . . . . . Fastest Speed 40 | 50 90 105 105 260 40 43 52 52 52 52 45 Average Speed 132 | 92 110 105 174 260 191 59 52 53 52 52 45 Slowest Speed 800 | 150 160 105 260 260 500 350 98 800 52 52 101 Overloaded Moves . | . . . . . . . . . . . . Propulsion Burnouts . | . . . . . . . . . . . . Robots Hopped . | . . . . . . . . . . . . Potential Cave-ins . | . . . . . . . . . . . . Cave-ins Triggered . | . . . . . . . . . . . . Exploration Rate (%) 60 | 5 92 99 63 43 84 51 79 73 80 42 9 Regions Visited 11 Branch Regions 8 Pre-discovered Areas 10 | . . 2 2 . 2 3 . . 1 . . Known Exits Taken 5 | . . . . . . 1 1 1 1 1 . Unknown Exits Taken 6 | 1 1 1 1 1 1 . . . . . . Scrap Searched 17 | . . 1 9 . 3 . . 1 . 3 . Spaces Dug 80 | . 2 . 2 . . 55 6 5 . . 10 Terrain Destroyed 198 | . 3 . 4 . . 82 15 53 . . 41 Melee 42 | . . . 2 . . 40 . . . . . Projectile 81 | . 2 . . . . 42 15 9 . . 13 AOE 75 | . 1 . 2 . . . . 44 . . 28 Terrain Rammed . | . . . . . . . . . . . . Walls Destroyed . | . . . . . . . . . . . . Machines Disabled . | . . . . . . . . . . . . Actions | -11 -10 -10 -10 -8 -8 -6 -6 -6 -6 -5 -5 --------- Run | Yrd Mat Min Sub Rec Scr Fac Low Low Dat Pro Fac Total 13668 | 79 897 761 2505 194 3668 3157 779 574 130 285 639 Wait 1843 | 3 102 52 173 . 58 1028 78 58 . 3 288 Move 11275 | 54 750 689 2263 194 3555 1863 680 497 130 274 326 Hop . | . . . . . . . . . . . . Pick Up 79 | 7 8 3 12 . 18 26 1 1 . 3 . Fast Attach 41 | 7 2 . 4 . 14 13 . 1 . . . Attach 23 | . . . 4 . 1 12 1 1 . . 4 Detach 9 | . 1 . . . . 7 . 1 . . . Swap 51 | 2 11 1 4 . 1 23 2 2 . 1 4 Drop 71 | . 5 3 6 . 21 32 2 . . 2 . Fire 179 | 6 17 13 13 . . 85 15 13 . . 17 Melee 94 | . . . 25 . . 67 . . . 2 . Ram 1 | . 1 . . . . . . . . . . Kick . | . . . . . . . . . . . . Crush . | . . . . . . . . . . . . Escape Stasis . | . . . . . . . . . . . . Rewire . | . . . . . . . . . . . . Trap 1 | . . . . . . 1 . . . . . Miscellaneous 1 | . . . 1 . . . . . . . . Route ------- -11/Scrapyard -10/Materials (discovered 5 exits: [*Mat x3] / [*Min] / *Sub) -10/Mines (discovered 3 exits: [*Mat x2] / *Sub) -10/Subcaves (discovered 3 exits: [*Mat x2] / [*Rec]) -8/Recycling -8/Scraptown (discovered 2 exits: *Fac x2) -6/Factory (discovered 6 exits: *Fac x4 / *Low x2) -6/Lower Caves -6/Lower Caves (discovered 2 exits: Fac / *Dat) -6/Data Miner -5/Proximity Caves -5/Factory (discovered 3 exits: Fac / Upp / Ext) History --------- Turn | Location | Event 16 | -11/Scrapyard | Discovered new exit (range 16) 93 | -11/Scrapyard | Entered Materials 244 | -10/Materials | Discovered new exit (range 10) 303 | -10/Materials | Build established: Mutant 481 | -10/Materials | Discovered new exit (range 7) 593 | -10/Materials | Derelicts attacked the area 701 | -10/Materials | Discovered new exit (range 6) 847 | -10/Materials | Discovered new exit (range 7) 924 | -10/Materials | Discovered new exit (range 6) 1104 | -10/Materials | Entered Mines 1104 | -10/Mines | Learned 2 Materials zone layouts 1136 | -10/Mines | Learned location of Zion (-7) 1486 | -10/Mines | Learned location of Storage (-8) 1489 | -10/Mines | Discovered new exit (range 3) 1639 | -10/Mines | Received a Rocket Launcher from a helpful Derelict 1792 | -10/Mines | A weapon hastily lodged in a ceiling crevice suddenly fell to the ground 1799 | -10/Mines | Discovered new exit (range 15) 1920 | -10/Mines | Discovered new exit (range 6) 1925 | -10/Mines | Entered Subcaves 1938 | -10/Subcaves | Discovered new exit (range 12) 2065 | -10/Subcaves | Visited Clippyterm 2068 | -10/Subcaves | Learned location of Deep Caves (-7) 2365 | -10/Subcaves | Ambushed by Subdweller buried in earth 2365 | -10/Subcaves | Ambushed by Subdweller buried in earth 2366 | -10/Subcaves | Core integrity fell below 50% 2414 | -10/Subcaves | Lost 5 parts (2n1u2w) 2547 | -10/Subcaves | Met a Zionite searching for "candidates" 2839 | -10/Subcaves | Shifting Twisted Machinery released Sub. Monowheel 2855 | -10/Subcaves | Shifting Twisted Machinery released Shrapnel Trap 2858 | -10/Subcaves | Discovered new exit (range 5) 2989 | -10/Subcaves | Disturbed a concealed Subdweller 3035 | -10/Subcaves | Core integrity fell below 20% 3227 | -10/Subcaves | Visited 4L-MR0's lab 3568 | -10/Subcaves | Shifting Twisted Machinery released Mak. Light Armor Plating 3625 | -10/Subcaves | Discovered new exit (range 3) 3650 | -10/Subcaves | Shifting Twisted Machinery released Spk. Treads 5567 | -10/Subcaves | Found Prototype Device 5575 | -10/Subcaves | Found Gun Armor 6149 | -10/Subcaves | Entered Recycling 6586 | -8/Recycling | Scanned before Scraplab entrance 6623 | -8/Recycling | Entered Scraplab 6646 | -8/Recycling | Discovered new exit (range 3) 6654 | -8/Recycling | Entered Scraptown 6904 | -8/Scraptown | Visited Symbiants 6948 | -8/Scraptown | Visited UFD Registry 6948 | -8/Scraptown | Registered with UFD as "Microbrain" 6985 | -8/Scraptown | Visited SPCMW 7024 | -8/Scraptown | Visited Comm Corps 7065 | -8/Scraptown | Visited Spacefarers 7109 | -8/Scraptown | Visited The Evicted 7125 | -8/Scraptown | Visited Cyclists 7146 | -8/Scraptown | Entered Cyclist Reading Room 7284 | -8/Scraptown | Scanned Subdweller tech in exchange for log data 7291 | -8/Scraptown | Learned location of 1 exit from Research 7294 | -8/Scraptown | Learned Factory stockpile data 7317 | -8/Scraptown | Discovered new exit (range 13) 7609 | -8/Scraptown | Heard Great Nut preacher, LISTEN AND RECITE! 7723 | -8/Scraptown | Visited Red Mages 7889 | -8/Scraptown | Visited Junk Repository 7960 | -8/Scraptown | Visited A0-MCA Data Center 7996 | -8/Scraptown | Visited Chapter 10 8027 | -8/Scraptown | Visited Curators Association 8139 | -8/Scraptown | Visited Junk Repository 8183 | -8/Scraptown | Visited LU-1G1's Boring Crew 8222 | -8/Scraptown | Visited Scrap Suit Storage 8264 | -8/Scraptown | Visited Science Guys 8352 | -8/Scraptown | Visited Research Penetration Think Tank 8957 | -8/Scraptown | Given an A+ rating by A0-MCA 8959 | -8/Scraptown | Found A0-MCA's Component Scanner 9017 | -8/Scraptown | Identified Sfc. Transmogrifier 11705 | -8/Scraptown | Delivered Scrap Shield to a Scientist 11884 | -8/Scraptown | Visited Derelict Rescue Squad 11904 | -8/Scraptown | Found DRS Beacon 13364 | -8/Scraptown | Discovered new exit (range 5) 13476 | -8/Scraptown | Met Optimus 13476 | -8/Scraptown | Accepted into 0bPrime 13574 | -8/Scraptown | Entered Factory 13574 | -6/Factory | Evolved 8 slots: Propulsion x2, Utility x6 13997 | -6/Factory | Build established: Hacker-Mutant 14319 | -6/Factory | Discovered new exit (range 14) 14327 | -6/Factory | Identified exit to Factory 14346 | -6/Factory | Identified exit to Lower Caves 14484 | -6/Factory | Central database locked down 14641 | -6/Factory | Repaired Aerolev Unit 14743 | -6/Factory | Loaded intel: 8 recycling unit locations 14901 | -6/Factory | Discovered exit to Factory (range 7) 15048 | -6/Factory | Exp. Hacking Suite fried by hacking feedback 15090 | -6/Factory | Spotted B-75 Beast 15235 | -6/Factory | Learned location of Protoforge (-3) 15312 | -6/Factory | Discovered exit to Factory (range 17) 15669 | -6/Factory | Loaded intel: 5 fabricator locations 15705 | -6/Factory | Learned Extension interactive machine intel 15746 | -6/Factory | Learned location of 1 exit from Lower Caves 15752 | -6/Factory | Learned location of Warlord (-4) 15753 | -6/Factory | Learned location of 1 exit from Lower Caves 15754 | -6/Factory | Learned Extension terminal intel 15763 | -6/Factory | Build established: Scout 15764 | -6/Factory | Learned location of 1 exit from Factory 15783 | -6/Factory | Learned 2 Hub_04(d) zone layouts 16193 | -6/Factory | Entered Lower Caves 16194 | -6/Lower Caves | Identified exit to Lower Caves 16195 | -6/Lower Caves | UFD Scientist delivered a prototype 16202 | -6/Lower Caves | Found Prototype Protection 16303 | -6/Lower Caves | Learned 8 Factory zone layouts 16662 | -6/Lower Caves | Entered another Lower Caves area 16663 | -6/Lower Caves | Encountered a Warlord checkpoint 16663 | -6/Lower Caves | Identified exit to Data Miner 16732 | -6/Lower Caves | Learned Factory non-interactive machine intel 16988 | -6/Lower Caves | Learned Factory emergency access door positions 17021 | -6/Lower Caves | Entered Data Miner 17021 | -6/Data Miner | Discovered new exit (range 6) 17028 | -6/Data Miner | Met Data Miner 17046 | -6/Data Miner | Learned location of Section 7 (-3) 17046 | -6/Data Miner | Acquired the access code to Warlord's prototype stash 17051 | -6/Data Miner | Received God Mode back door access code from Data Miner 17089 | -6/Data Miner | Identified exit to Proximity Caves 17089 | -6/Data Miner | Entered Proximity Caves 17091 | -5/Proximity Caves | Spotter reported a threat 17092 | -5/Proximity Caves | Spotter reported a threat 17148 | -5/Proximity Caves | Spotted B-75 Beast 17154 | -5/Proximity Caves | Spotter reported a threat 17207 | -5/Proximity Caves | Spotter reported a threat 17207 | -5/Proximity Caves | Found DCF Scrap (13 items) 17228 | -5/Proximity Caves | Spotter reported a threat 17233 | -5/Proximity Caves | Discovered exit to Factory (range 13) 17245 | -5/Proximity Caves | Entered Factory 17245 | -5/Factory | Evolved 2 slots: Power x1, Propulsion x1 17246 | -5/Factory | Identified exit to Upper Caves 17247 | -5/Factory | Identified exit to Factory 17248 | -5/Factory | Identified exit to Extension 17250 | -5/Factory | Loaded intel: 241 non-interactive machine locations 17299 | -5/Factory | Repaired Cld. Aerolev Unit 17545 | -5/Factory | Search patrols dispatched 17710 | -5/Factory | Loaded intel: 8 recycling unit locations 17728 | -5/Factory | Self-destructed Last Messages --------------- 17724_ Fabricator disabled. 17724_ U-05 Engineer destroyed. 17724_ K-01 Serf collects debris. 17725_ Penetrated by Slug. 17725_ Imp. Gravmag System+ destroyed. 17725_ K-01 Serf collects debris. 17725_ R-10 Processor collects Imp. Heat Sink. 17726_ U-05 Engineer lays Concrete. 17726_ Penetrated by Slug. 17726_ Lrn. Missile Launcher destroyed. 17726_ Gravmag System destroyed. 17726_ Knocked back. 17726_ Penetrated by Slug. 17726_ Mak. Power Source destroyed. 17727_ U-05 Engineer lays Concrete. 17727_ K-01 Serf collects debris. 17727_ Penetrated by Slug. 17727_ Gravity Neutralizer destroyed. 17727_ Gravmag Array+ destroyed. 17727_ K-01 Serf collects debris. Map ----- +----------------------------------------------------+ | ??????????########### # ??"""""???????? | | ?????????? / # ??????????????? | | ?????????????"""????????"""""??????""" """ #?????? | | ?????????????"""????????"""""??????"""T""" #?????? | | ?????????????"""????????"""????????############### | | ???????????????????????????????????????# # | | ?????????????"""???????????????????????# # | | ?????????????"""???????????????????????# # | | ?????????????"""???????????????????????# """ """ # | | ???????????????????????????????????????# """ """ # | | ???????????????????????????????????????# """ """ # | | ???????????????????????????????????????# # | | ??????????????????????###??????????????# """ """ # | | ?????????????????????##Y#########??????# """ """ # | | ?????????????????????# = #??????# """ """ # | | ?????????????????????# #??????# # | | ????????############## #??????# """ """ # | | ????????? # #??????# """ """ # | | ????????? # #??????# """ """ # | | ??????????? ]!#??????# # | | ?????????? !!######## # | | ??????????""" """ # ##########+# | | ????????? """ """ ; wR | | ????????# """ """ | k | | ????????# k R | | ??????????""" """ @ w############ | | ??????????""" """ *%R# ############# | | ????????# """ """ k h [## # | | ????????# * # # | | ????????#######;;;;; !% # + | | ????????????# u h # "" "" | | ????????????# u u # "" "" | | ???????????## ! % = #?""" """ | | ???????????#" ! =! ;####+### #?""" """ ??? | | ???????????#" !! ; ## #?""" """ ??? | | ???????????#" ; """ ## #?? ???? | | ???????????#T H ;; """ ## #??? ???? | | ???????????#" ;; """ !## #??? ! ??? | | ???????????#" "" ;; ## #???? ??? | | ???????????#" "" ;# """ ## ##???###????? | | ############# "" ## """ # ############ | | """ A ## """ # | | """ k ## + T | | kk ## """ # | | ????????##### = k ## """ # #####+#### | | """??????? # #######/#### """ ######## +?? | | """??????? + ### # #??????# "" #?? | | """??????? # ### """"#[ #??????# """ #?? | | ???????""" # #?# """"########??????# S" #?? | | ???????""" # #?# """"#?????????????# """ #?? | +----------------------------------------------------+ Best States ------------- Heat Dissipation 67 Coolant Potential 65 Energy Generation 31 Energy Capacity 735 Matter Stores 300 Matter Capacity 300 Sight Range 22 Robot Scan Range 16 Terrain Scan Density 10 Additional Mass Support 12 Armor Coverage 800 Resistance: EM 15 Weapon Shielding 90 Evasion (%) 66 Recoil Reduction 2 Offensive Hacking 16 Defensive Hacking 14 Item Schematics ----------------- Combat Drone Bay | -6/Data Miner | Free Lgt. Regenerative Plating | -6/Data Miner | Free Cld. Nuclear Pulse Thruster | -6/Data Miner | Free Prc. Matter Filter | -6/Data Miner | Free Hvy. Gatling Laser | -6/Data Miner | Free Impulse Thruster | -6/Data Miner | Free Quantum Capacitor | -6/Data Miner | Free Hvy. Disruptor Cannon | -6/Data Miner | Free Gyrokinetic Inverter | -6/Data Miner | Free Adv. Medium Treads | -6/Data Miner | Free Centrium Wheel | -6/Data Miner | Free Arm. Heavy Treads | -6/Data Miner | Free Adv. Point Defense System | -6/Data Miner | Free Robot Schematics ------------------ B-48 Gladiator | -6/Data Miner | Free S-27 Virus | -6/Data Miner | Free I-47 Archangel | -6/Data Miner | Free A-15 Conveyor | -6/Data Miner | Free O-32 Director | -6/Data Miner | Free Fabricated ------------ Nothing Repaired ---------- Aerolev Unit | 55% | -6/Factory Cld. Aerolev Unit | 7% | -5/Factory Studied --------- Imp. Gravmag System | -6/Factory | Hacked Gravmag Array | -6/Factory | Hacked Neutrino Core | -5/Factory | Hacked Alien Tech Used ----------------- None Achievements -------------- None Challenges ------------ None Game ------ Seed TransmissionDeepTelecube Manual? 0 Play Time 02:26:36 Cumulative 869.7 hours Start 2026.08.09 @ 17:15:13 End 2026.08.10 @ 14:49:38 Sessions 10 Manual Loads 0 Difficulty Rogue Special Mode None Game No. 306 Rogue 302 Adventurer 4 Explorer 0 Win Type - Total 23 Types 9/3/7/0/0/0/2/2/0/0 Lore% 91 Gallery% 81 Achievement% 67 Wizard Run 0 Options --------- Layout 1 ASCII 0 Keyboard 0 Movement Numpad Keybinds 0 Fullscreen 1 Font 40/SmallcapsGlow Map View 50x40 Zoom Use 0% Tactical HUD 1 Map Filters NONE Filters NONE Steam 1 RUN: d9d1a65d-9ccb-42dc-a164-7b02ea82622b